bitfinex/quotes_SOLUSD_20250125
["timestamp","ask_amount","ask_price","bid_price","bid_amount"]
[1737811425816,0.03,250.53,250.52,24.1]
[1737811426633,0.03,250.53,250.52,47.876884]
[1737811426833,0.03,250.53,250.52,51.868484]
[1737811429340,0.03,250.53,250.52,28.0916]
[1737811430141,0.03,250.53,250.52,51.868484]
[1737811431441,0.03,250.53,250.52,133.768484]
[1737811432849,0.03,250.62,250.61,1.0]
[1737811433143,0.03,250.62,250.61,4.1]
[1737811437453,0.03,250.62,250.61,1.0]
[1737811441545,0.03,250.62,250.54,4.6651]
[1737811441546,0.03,250.62,250.59,1.0]
[1737811441753,0.03,250.62,250.57,1.0]
[1737811441948,8.00728609,250.62,250.57,1.0]
[1737811442262,7.97728609,250.61,250.55,1.0]
[1737811442758,7.97728609,250.59,250.56,1.0]
[1737811443064,0.03,250.62,250.47,4.7471]
[1737811443065,7.97728609,250.57,250.51,1.0]
[1737811443860,7.97728609,250.59,250.51,1.0]
[1737811444247,7.97728609,250.58,250.51,1.0]
[1737811444443,7.97728609,250.56,250.53,1.0]
[1737811445265,7.97728609,250.57,250.53,1.0]
[1737811445463,7.97728609,250.57,250.51,1.0]
[1737811445645,7.97728609,250.56,250.49,1.0]
[1737811445954,23.776884,250.59,250.49,1.0]
[1737811445955,7.97728609,250.54,250.49,1.0]
[1737811446259,24.776884,250.59,250.51,1.0]
[1737811446260,7.97728609,250.53,250.51,1.0]
[1737811446450,7.97728609,250.54,250.51,1.0]
[1737811446934,7.97728609,250.54,250.47,1.0]
[1737811447758,7.97728609,250.54,250.49,1.0]
[1737811447962,7.97728609,250.55,250.49,1.0]
[1737811448159,23.776884,250.59,250.51,1.0]
[1737811448160,27.97728609,250.56,250.51,1.0]
[1737811448458,20.0,250.58,250.53,1.0]
[1737811449047,0.03,250.62,250.55,1.0]
[1737811450167,0.03,250.62,250.57,1.0]
[1737811450668,20.03,250.62,250.57,1.0]
[1737811452860,0.03,250.62,250.57,1.0]
[1737811453579,0.03,250.62,250.6,1.0]
[1737811454750,0.03,250.62,250.58,1.0]
[1737811458271,0.03,250.62,250.56,1.0]
[1737811458574,7.97728609,250.61,250.56,1.0]
[1737811458945,7.97728609,250.6,250.55,1.0]
[1737811460261,7.97728609,250.6,250.53,0.063]
[1737811460463,7.97728609,250.54,250.53,0.063]
[1737811461172,31.75417009,250.54,250.53,0.063]
[1737811462664,20.0,250.54,250.53,0.063]
[1737811462854,20.0,250.54,250.42,0.063]
[1737811462855,20.0,250.53,250.42,0.063]
[1737811463056,7.97728609,250.44,250.42,0.063]
[1737811463672,12.4405233,250.44,250.42,0.063]
[1737811464379,23.776884,250.43,250.42,0.063]
[1737811464977,12.4405233,250.44,250.42,0.063]
[1737811465650,23.776884,250.43,250.42,0.063]
[1737811465868,24.776884,250.43,250.42,0.0001]
[1737811468554,26.49616299,250.43,250.42,0.0001]
[1737811469567,24.776884,250.38,250.26,2.6178]
[1737811469766,37.2174073,250.38,250.37,0.0001]
[1737811471869,49.6579306,250.38,250.37,0.0001]
[1737811472062,36.2174073,250.38,250.37,0.0001]
[1737811472262,12.4405233,250.38,250.37,0.0001]
[1737811472664,12.4405233,250.42,250.37,0.0001]
[1737811474776,12.4405233,250.38,250.37,0.0001]
[1737811474968,36.2174073,250.38,250.37,0.0001]
[1737811475484,37.2174073,250.38,250.37,0.0001]
[1737811477187,49.6579306,250.38,250.37,0.0001]
[1737811479381,24.776884,250.32,250.31,0.063]
[1737811479581,37.2174073,250.32,250.31,0.063]
[1737811479782,20.0,250.28,250.26,0.063]
[1737811479978,12.4405233,250.27,250.26,0.063]
[1737811480283,36.2174073,250.27,250.26,0.063]
[1737811480987,12.4405233,250.31,250.26,0.063]
[1737811481166,12.4405233,250.36,250.27,1.0]
[1737811481676,12.4705233,250.38,250.29,1.0]
[1737811482398,23.776884,250.37,250.29,1.0]
[1737811482972,20.0,250.34,250.29,1.0]
[1737811483467,12.4705233,250.38,250.29,1.0]
[1737811483973,12.4705233,250.38,250.31,1.0]
[1737811484687,12.4405233,250.36,250.27,1.0]
[1737811484882,12.4405233,250.36,250.26,0.063]
[1737811484883,20.0,250.33,250.26,0.063]
[1737811485185,12.4405233,250.32,250.26,0.063]
[1737811487092,12.4405233,250.33,250.27,1.0]
[1737811487694,12.4405233,250.35,250.27,1.0]
[1737811487907,12.4405233,250.37,250.3,1.0]
[1737811488080,12.4405233,250.35,250.3,1.0]
[1737811490003,0.03,250.38,250.35,1.0]
[1737811490409,12.4405233,250.54,250.45,1.0]
[1737811490612,12.4405233,250.52,250.45,1.0]
[1737811491499,12.4405233,250.5,250.43,1.0]
[1737811493003,12.4405233,250.5,250.45,1.0]
[1737811493299,12.4405233,250.52,250.45,1.0]
[1737811494701,12.4705233,250.52,250.45,1.0]
[1737811494917,20.0,250.51,250.45,1.0]
[1737811496596,36.2174073,250.5,250.44,1.5569]
[1737811496804,12.4405233,250.47,250.44,1.5569]
[1737811497401,12.4405233,250.47,250.39,1.0]
[1737811498327,12.4405233,250.47,250.41,1.0]
[1737811499231,12.4405233,250.5,250.41,1.0]
[1737811499404,12.4705233,250.52,250.43,1.0]
[1737811500224,20.0,250.48,250.43,1.0]
[1737811500693,20.0,250.48,250.38,1.5569]
[1737811500694,20.0,250.48,250.39,1.0]
[1737811501597,12.4405233,250.45,250.39,1.0]
[1737811501830,12.4405233,250.44,250.39,1.0]
[1737811502128,36.2174073,250.46,250.39,1.0]
[1737811503034,12.4405233,250.44,250.38,1.5569]
[1737811503403,23.776884,250.44,250.38,1.5569]
[1737811504217,20.0,250.45,250.39,1.0]
[1737811505624,1.03,250.52,250.42,1.0]
[1737811505625,12.4705233,250.52,250.42,1.0]
[1737811506002,20.0,250.49,250.42,1.0]
[1737811506804,12.4405233,250.5,250.42,1.0]
[1737811507020,0.03,250.46,250.42,1.0]
[1737811507301,0.03,250.46,250.43,3.9931]
[1737811507514,0.03,250.46,250.45,1.0]
[1737811507824,0.03,250.46,250.45,9.0968]
[1737811508926,0.03,250.52,250.45,13.0896]
[1737811509126,0.03,250.52,250.45,16.1896]
[1737811509323,0.03,250.52,250.51,1.0]
[1737811512837,0.03,250.52,250.48,1.0]
[1737811515536,0.03,250.52,250.45,9.0968]
[1737811515715,12.4705233,250.52,250.48,1.0]
[1737811515911,12.4405233,250.51,250.48,1.0]
[1737811516610,12.4405233,250.5,250.45,8.0968]
[1737811516843,12.4405233,250.47,250.39,8.0486]
[1737811517033,12.4405233,250.46,250.4,0.99]
[1737811517239,12.4405233,250.45,250.4,0.99]
[1737811517539,12.4405233,250.46,250.39,9.0486]
[1737811517925,12.4405233,250.47,250.44,1.0]
[1737811518946,12.4405233,250.48,250.44,1.0]
[1737811519540,23.776884,250.47,250.44,1.0]
[1737811519755,12.4405233,250.46,250.39,9.0486]
[1737811520844,12.4405233,250.47,250.39,9.0486]
[1737811524851,12.4705233,250.47,250.39,9.0486]
[1737811525941,12.4705233,250.47,250.39,8.0486]
[1737811525942,12.4405233,250.46,250.39,8.0486]
[1737811526163,12.4405233,250.43,250.39,1.6324]
[1737811526345,12.4405233,250.44,250.39,1.6324]
[1737811526846,12.4405233,250.43,250.39,1.6324]
[1737811530236,0.03,250.47,250.41,1.0]
[1737811531139,12.4405233,250.46,250.39,2.6324]
[1737811531346,12.4405233,250.45,250.39,2.6324]
[1737811532664,12.4405233,250.45,250.39,1.6324]
[1737811532961,12.4405233,250.43,250.39,1.6324]
[1737811533139,12.4405233,250.42,250.39,1.6324]
[1737811533328,36.2174073,250.41,250.38,0.063]
[1737811533535,12.4405233,250.39,250.38,0.063]
[1737811534967,36.2174073,250.39,250.38,0.063]
[1737811535168,37.61741213,250.39,250.38,0.063]
[1737811535466,37.61741213,250.39,250.37,0.063]
[1737811535467,23.776884,250.38,250.37,0.063]
[1737811535659,36.2174073,250.38,250.37,0.063]
[1737811536736,23.776884,250.34,250.27,7.8694]
[1737811536953,12.4405233,250.33,250.27,7.8694]
[1737811537255,23.776884,250.32,250.27,7.8694]
[1737811537462,36.2174073,250.32,250.27,7.8694]
[1737811537668,12.4405233,250.31,250.27,1.675]
[1737811537855,12.4405233,250.3,250.27,1.675]
[1737811538054,23.776884,250.32,250.27,1.675]
[1737811538055,12.4405233,250.29,250.27,1.675]
[1737811538377,12.4405233,250.29,250.27,0.063]
[1737811539035,1.0,250.31,250.27,0.063]
[1737811539036,12.4405233,250.28,250.27,0.063]
[1737811539231,36.2174073,250.28,250.27,0.063]
[1737811539555,20.0,250.28,250.27,0.063]
[1737811540562,43.776884,250.28,250.27,0.063]
[1737811540764,56.2174073,250.28,250.27,0.063]
[1737811542482,12.4405233,250.28,250.27,0.063]
[1737811542679,12.4405233,250.3,250.27,0.063]
[1737811545483,75.46648271,250.35,250.26,0.0001]
[1737811545484,37.2174073,250.28,250.26,0.0001]
[1737811545680,43.776884,250.24,250.23,0.0001]
[1737811545980,56.61741213,250.24,250.23,0.0001]
[1737811547871,32.4405233,250.24,250.23,0.0001]
[1737811548262,12.4405233,250.25,250.23,0.0001]
[1737811548663,32.84052813,250.24,250.23,0.0001]
[1737811548968,57.61741213,250.24,250.23,0.0001]
[1737811550186,12.4405233,250.28,250.23,0.0001]
[1737811550567,23.776884,250.27,250.23,0.0001]
[1737811551094,12.4405233,250.28,250.23,0.0001]
[1737811551268,23.776884,250.27,250.23,0.0001]
[1737811552563,12.4405233,250.28,250.23,1.0001]
[1737811552986,12.4405233,250.34,250.29,1.0]
[1737811553194,2.86,250.43,250.31,1.0]
[1737811553195,12.4405233,250.38,250.31,1.0]
[1737811553695,12.4405233,250.38,250.33,1.0]
[1737811553895,23.776884,250.33,250.25,7.189]
[1737811554071,12.4405233,250.29,250.25,7.189]
[1737811554269,12.4405233,250.31,250.25,7.189]
[1737811555385,12.4405233,250.31,250.27,1.0]
[1737811556794,12.4405233,250.31,250.25,6.189]
[1737811557161,12.4405233,250.29,250.24,1.5024]
[1737811557377,12.4405233,250.27,250.24,1.5024]
[1737811557885,12.4405233,250.29,250.24,1.5024]
[1737811560167,12.4405233,250.27,250.24,1.5024]
[1737811560571,0.03,250.31,250.28,1.0]
[1737811561684,0.03,250.31,250.3,1.0]
[1737811567197,0.03,250.31,250.3,7.0463]
[1737811567491,0.03,250.31,250.3,8.6479]
[1737811568701,12.4405233,250.43,250.36,1.0]
[1737811568892,12.4405233,250.43,250.38,1.0]
[1737811569096,12.4405233,250.41,250.34,1.0]
[1737811569400,12.4405233,250.39,250.34,1.0]
[1737811570289,12.4405233,250.41,250.37,1.0]
[1737811571992,12.4405233,250.43,250.37,1.0]
[1737811572289,12.4405233,250.43,250.39,1.0]
[1737811575608,12.4405233,250.43,250.37,1.0]
[1737811575914,12.4405233,250.43,250.39,1.0]
[1737811576909,0.03,250.45,250.39,1.0]
[1737811576910,12.4705233,250.45,250.39,1.0]
[1737811577105,12.4705233,250.45,250.41,1.0]
[1737811577291,0.03,250.45,250.41,1.0]
[1737811577693,0.03,250.45,250.43,1.0]
[1737811579118,0.03,250.45,250.41,1.0]
[1737811584729,0.03,250.45,250.37,1.0]
[1737811584730,12.4405233,250.42,250.37,1.0]
[1737811584925,12.4405233,250.38,250.37,1.0]
[1737811585101,12.4405233,250.38,250.36,1.0]
[1737811585298,12.4405233,250.37,250.36,1.0]
[1737811585826,12.4405233,250.37,250.31,1.063]
[1737811586127,12.4405233,250.35,250.31,1.063]
[1737811586716,12.4405233,250.35,250.31,0.063]
[1737811587026,12.4405233,250.33,250.31,0.063]
[1737811588796,23.776884,250.32,250.31,0.063]
[1737811590617,12.4405233,250.27,250.26,0.063]
[1737811590811,36.2174073,250.27,250.26,0.063]
[1737811597527,36.61741213,250.27,250.26,0.063]
[1737811598106,20.0,250.24,250.23,0.0001]
[1737811598307,57.2174073,250.24,250.22,0.0001]
[1737811598617,36.61741213,250.23,250.22,0.0001]
[1737811599732,37.61741213,250.23,250.22,0.0001]
[1737811600815,44.776884,250.21,250.2,0.0001]
[1737811601008,57.61741213,250.21,250.2,0.0001]
[1737811607407,57.61741213,250.21,250.16,0.063]
[1737811607408,21.0,250.17,250.16,0.0001]
[1737811607638,57.61741213,250.17,250.16,0.0001]
[1737811609935,56.61741213,250.17,250.16,0.0001]
[1737811610439,56.51205742,250.17,250.16,0.0001]
[1737811611731,57.51205742,250.17,250.16,0.0001]
[1737811612825,1.0,250.15,250.13,0.063]
[1737811613146,0.9358,250.19,250.05,0.063]
[1737811613147,20.0,250.11,250.05,0.063]
[1737811613312,12.4405233,250.1,250.05,0.063]
[1737811615048,36.2174073,250.1,250.05,0.063]
[1737811615857,12.4405233,250.16,250.09,1.063]
[1737811616022,12.4405233,250.16,250.11,1.0]
[1737811616716,23.776884,250.13,250.09,1.063]
[1737811617038,12.4405233,250.12,250.09,0.063]
[1737811618349,12.4405233,250.12,250.09,1.063]
[1737811618550,12.4405233,250.12,250.09,0.063]
[1737811618765,12.4405233,250.14,250.09,1.063]
[1737811620142,20.0,250.13,250.09,1.063]
[1737811621547,12.4405233,250.14,250.09,1.063]
[1737811622250,12.4405233,250.14,250.1,1.0]
[1737811622436,12.4405233,250.16,250.1,1.0]
[1737811622640,12.4405233,250.16,250.12,1.0]
[1737811622843,23.776884,250.15,250.12,1.0]
[1737811623146,20.0,250.15,250.14,1.0]
[1737811623538,23.806884,250.17,250.16,1.0]
[1737811624453,0.03,250.31,250.21,1.0]
[1737811624642,0.03,250.31,250.26,1.0]
[1737811624951,0.03,250.31,250.3,1.0]
[1737811626551,0.03,250.31,250.28,2.6069]
[1737811626929,43.776884,250.29,250.28,1.6069]
[1737811627255,23.776884,250.28,250.24,1.0]
[1737811627454,12.4405233,250.25,250.22,1.6069]
[1737811628435,36.2174073,250.23,250.18,1.0]
[1737811628642,36.2174073,250.23,250.21,1.0]
[1737811631146,23.776884,250.23,250.21,1.0]
[1737811631354,12.4405233,250.29,250.23,1.0]
[1737811631535,12.4405233,250.29,250.17,6.1084]
[1737811631536,12.4705233,250.31,250.25,1.0]
[1737811631739,20.0,250.28,250.25,1.0]
[1737811632558,20.0,250.27,250.25,1.0]
[1737811633668,12.4705233,250.31,250.27,1.0]
[1737811633838,0.03,250.31,250.27,1.0]
[1737811634033,12.4405233,250.29,250.24,1.0]
[1737811634355,23.776884,250.28,250.27,1.0]
[1737811634854,12.4405233,250.29,250.27,1.0]
[1737811635159,12.4405233,250.29,250.28,1.0]
[1737811636773,23.776884,250.28,250.25,1.0]
[1737811637060,23.776884,250.28,250.18,85.0]
[1737811637061,23.776884,250.28,250.23,1.0]
[1737811637560,12.4405233,250.29,250.25,1.0]
[1737811637752,12.4405233,250.29,250.26,1.0]
[1737811638061,12.4405233,250.29,250.18,88.997]
[1737811638062,12.4405233,250.29,250.28,1.0]
[1737811640351,12.4405233,250.29,250.23,1.0]
[1737811640555,12.4405233,250.26,250.23,1.0]
[1737811641162,12.4405233,250.26,250.25,1.0]
[1737811642336,23.776884,250.27,250.25,1.0]
[1737811642841,23.776884,250.27,250.24,1.0]
[1737811643340,12.4405233,250.26,250.24,1.0]
[1737811644160,12.4405233,250.26,250.22,1.0]
[1737811644357,23.776884,250.23,250.18,82.9]
[1737811644668,12.4405233,250.21,250.18,1.0]
[1737811644843,12.4405233,250.21,250.2,1.0]
[1737811645046,12.4405233,250.23,250.2,1.0]
[1737811645376,12.4405233,250.23,250.22,1.0]
[1737811645944,20.0,250.24,250.22,1.0]
[1737811649266,12.4405233,250.25,250.22,1.0]
[1737811649467,12.4405233,250.23,250.19,1.0]
[1737811650058,12.4405233,250.23,250.22,1.0]
[1737811652442,23.776884,250.24,250.22,1.0]
[1737811653278,0.03,250.29,250.22,1.0]
[1737811653279,20.0,250.23,250.22,1.0]
[1737811653559,20.0,250.23,250.17,88.0714]
[1737811653560,20.0,250.23,250.2,1.0]
[1737811653851,12.4405233,250.27,250.26,1.0]
[1737811654165,12.4705233,250.29,250.26,1.0]
[1737811654374,12.4705233,250.29,250.28,1.0]
[1737811654744,0.03,250.29,250.28,1.0]
[1737811657849,12.4705233,250.29,250.28,1.0]
[1737811658049,0.03,250.29,250.28,1.0]
[1737811662780,20.03,250.29,250.28,1.0]
[1737811664556,20.03,250.29,250.23,1.0]
[1737811664557,20.0,250.28,250.23,1.0]
[1737811664762,12.4405233,250.24,250.21,1.0]
[1737811665074,12.4405233,250.22,250.21,1.0]
[1737811666858,12.4405233,250.22,250.19,1.0]
[1737811667056,12.4405233,250.2,250.19,1.0]
[1737811667254,12.4405233,250.21,250.19,1.0]
[1737811669983,12.4405233,250.22,250.19,1.0]
[1737811670991,12.4405233,250.2,250.19,1.0]
[1737811671166,12.4405233,250.2,250.17,1.063]
[1737811671484,12.4405233,250.2,250.19,1.0]
[1737811672482,12.4405233,250.2,250.17,0.063]
[1737811672786,12.4405233,250.2,250.18,1.0]
[1737811673386,12.4405233,250.21,250.18,1.0]
[1737811673684,12.4405233,250.21,250.2,1.0]
[1737811676493,20.0,250.21,250.2,1.0]
[1737811677072,0.03,250.29,250.17,0.063]
[1737811677073,12.4405233,250.25,250.22,1.0]
[1737811677273,12.4405233,250.26,250.24,1.0]
[1737811677475,0.03,250.29,250.26,1.0]
[1737811677690,0.03,250.29,250.17,3.163]
[1737811677691,31.77822403,250.29,250.28,1.0]
[1737811678279,20.0,250.27,250.26,1.0]
[1737811678482,27.97134003,250.27,250.23,1.0]
[1737811678805,27.97134003,250.27,250.26,1.0]
[1737811679774,27.97134003,250.27,250.24,1.0]
[1737811679994,27.97134003,250.27,250.26,1.0]
[1737811680789,20.0,250.27,250.26,1.0]
[1737811681291,0.03,250.27,250.26,1.0]
[1737811684584,0.03,250.27,250.26,4.1]
[1737811690002,0.03,250.27,250.26,82.9]
[1737811698588,0.03,250.27,250.26,1.0]
[1737811702905,0.03,250.27,250.26,4.1]
[1737811703208,0.03,250.27,250.26,5.7352]
[1737811706023,0.03,250.27,250.26,1.0]
[1737811709634,8.00134003,250.27,250.26,1.0]
[1737811715145,8.00134003,250.27,250.24,1.0]
[1737811715350,8.00134003,250.27,250.26,1.0]
[1737811718055,0.03,250.27,250.26,1.0]
[1737811721332,8.00134003,250.27,250.26,1.0]
[1737811723551,8.00134003,250.27,250.24,1.0]
[1737811723742,8.00134003,250.27,250.26,1.0]
[1737811725227,0.03,250.27,250.26,1.0]
[1737811757603,8.00134003,250.27,250.26,1.0]
[1737811760178,0.03,250.27,250.26,1.0]
[1737811761280,8.00134003,250.27,250.26,1.0]
[1737811766396,8.00134003,250.27,250.24,1.0]
[1737811767490,8.00134003,250.27,250.26,1.0]
[1737811769892,23.776884,250.26,250.24,1.0]
[1737811770095,7.97134003,250.25,250.21,1.0]
[1737811770396,7.97134003,250.23,250.21,1.0]
[1737811772500,7.97134003,250.25,250.24,1.0]
[1737811774576,7.97134003,250.25,250.22,1.0]
[1737811774783,7.97134003,250.23,250.22,1.0]
[1737811777189,7.97134003,250.24,250.22,1.0]
[1737811777503,7.97134003,250.23,250.2,1.0]
[1737811777692,0.03,250.27,250.2,1.0]
[1737811777891,20.0,250.19,250.18,1.0]
[1737811778096,27.97134003,250.19,250.18,1.0]
[1737811778478,27.97134003,250.19,250.17,0.063]
[1737811778680,7.97134003,250.18,250.17,0.063]
[1737811783696,31.74822403,250.18,250.17,0.063]
[1737811786908,7.97134003,250.2,250.18,1.0]
[1737811787685,7.97134003,250.19,250.18,1.0]
[1737811787885,27.97134003,250.19,250.18,1.0]
[1737811788605,23.776884,250.18,250.17,0.063]
[1737811788819,23.776884,250.18,250.17,1.063]
[1737811788820,31.74822403,250.18,250.17,1.063]
[1737811790809,7.97134003,250.18,250.17,1.063]
[1737811793918,7.97134003,250.18,250.17,0.063]
[1737811795933,8.37134486,250.18,250.17,0.063]
[1737811796301,32.14822886,250.18,250.17,0.063]
[1737811796623,7.97134003,250.18,250.17,1.063]
[1737811799031,31.74822403,250.18,250.17,0.063]
[1737811799522,32.14822886,250.18,250.17,0.0001]
[1737811800424,20.0,250.14,250.12,0.063]
[1737811800637,8.37134486,250.13,250.12,0.063]
[1737811803131,8.37134486,250.13,250.12,0.0001]
[1737811803326,32.14822886,250.13,250.12,0.0001]
[1737811803543,31.74822403,250.13,250.12,0.0001]
[1737811804750,63.63358415,250.13,250.12,0.0001]
[1737811805036,31.74822403,250.13,250.12,0.0001]
[1737811805622,64.06358898,250.13,250.12,0.0001]
[1737811805815,32.17822886,250.13,250.12,0.0001]
[1737811806524,31.77822403,250.13,250.12,0.0001]
[1737811806909,8.00134003,250.13,250.12,1.0001]
[1737811807132,0.03,250.13,250.12,1.0001]
[1737811809026,0.03,250.13,250.12,82.9001]
[1737811812339,7.97134003,250.24,250.22,1.0]
[1737811813544,7.97134003,250.26,250.25,1.0]
[1737811813744,0.03,250.27,250.25,1.0]
[1737811814924,20.0,250.26,250.25,1.0]
[1737811816036,0.03,250.27,250.25,1.0]
[1737811816337,0.03,250.27,250.26,11.9028]
[1737811816635,0.03,250.29,250.28,1.0]
[1737811816940,0.03,250.29,250.28,25.1]
[1737811817516,0.03,250.29,250.28,4.1]
[1737811820641,0.03,250.29,250.28,1.0]
[1737811823039,8.00134003,250.29,250.28,1.0]
[1737811825145,0.03,250.29,250.28,1.0]
[1737811826448,8.00134003,250.29,250.28,1.0]
[1737811826637,8.00134003,250.29,250.26,1.0]
[1737811826825,7.97134003,250.27,250.26,1.0]
[1737811827031,31.74822403,250.27,250.26,1.0]
[1737811827739,7.97134003,250.28,250.26,1.0]
[1737811827940,20.0,250.27,250.26,1.0]
[1737811828846,7.97134003,250.27,250.26,1.0]
[1737811829944,7.97134003,250.27,250.24,1.0]
[1737811830149,7.97134003,250.25,250.24,1.0]
[1737811831139,7.97134003,250.25,250.2,1.0]
[1737811831347,7.97134003,250.21,250.2,1.0]
[1737811832544,23.776884,250.2,250.14,1.0]
[1737811832763,7.97134003,250.15,250.14,1.0]
[1737811833746,7.97134003,250.15,250.12,1.0001]
[1737811834052,23.776884,250.2,250.12,1.0001]
[1737811834053,7.97134003,250.13,250.12,1.0001]
[1737811834953,7.97134003,250.13,250.12,0.0001]
[1737811835148,7.97134003,250.13,250.12,1.0001]
[1737811835355,78.20648271,250.23,250.14,1.0]
[1737811835356,7.97134003,250.15,250.14,1.0]
[1737811835652,12.47014303,250.15,250.14,1.0]
[1737811835950,12.47014303,250.15,250.12,1.0001]
[1737811836142,12.47014303,250.15,250.14,1.0]
[1737811837242,36.24702703,250.15,250.12,0.0001]
[1737811837552,12.47014303,250.13,250.12,0.0001]
[1737811839037,12.47014303,250.13,250.12,1.0001]
[1737811839439,36.24702703,250.13,250.12,0.0001]
[1737811840143,12.47014303,250.13,250.12,1.0001]
[1737811842041,12.47014303,250.13,250.12,0.0001]
[1737811844346,12.87014786,250.13,250.12,0.0001]
[1737811844664,36.64703186,250.13,250.12,0.0001]
[1737811845742,49.11717489,250.13,250.12,0.0001]
[1737811846272,36.64703186,250.13,250.12,0.0001]
[1737811847986,49.11717489,250.13,250.12,0.0001]
[1737811848188,20.0,250.1,250.09,0.063]
[1737811848357,56.64703186,250.1,250.09,0.063]
[1737811851583,56.24702703,250.1,250.09,0.063]
[1737811855687,51.76344023,250.1,250.09,0.063]
[1737811862367,0.063,250.13,250.12,1.0]
[1737811864586,20.063,250.13,250.12,1.0]
[1737811870887,51.82644023,250.13,250.12,1.0]
[1737811871093,23.776884,250.12,250.1,1.0]
[1737811871305,7.98655623,250.12,250.1,1.0]
[1737811871505,8.04955623,250.13,250.1,1.0]
[1737811872105,23.776884,250.12,250.1,1.0]
[1737811873104,7.98655623,250.12,250.1,1.0]
[1737811873607,20.0,250.1,250.09,0.063]
[1737811877408,20.0,250.12,250.11,1.0]
[1737811878424,0.063,250.13,250.11,1.0]
[1737811880510,0.063,250.13,250.11,11.1201]
[1737811881022,0.063,250.13,250.11,7.1219]
[1737811881314,0.063,250.13,250.12,1.5921]
[1737811882895,0.063,250.13,250.12,5.5901]
[1737811885220,0.063,250.13,250.12,1.5921]
[1737811886718,0.063,250.13,250.12,1.6221]
[1737811890401,0.063,250.13,250.12,5.6201]
[1737811890816,0.063,250.13,250.12,1.6221]
[1737811891210,0.063,250.13,250.12,87.5201]
[1737811891412,0.063,250.27,250.26,1.0]
[1737811912845,0.063,250.27,250.26,82.9]
[1737811921849,0.063,250.27,250.26,86.8958]
[1737811925959,0.063,250.27,250.26,87.8958]
[1737811926261,0.063,250.27,250.26,90.9958]
[1737811926941,0.03,250.29,250.28,23.0]
[1737811928167,0.03,250.42,250.38,1.0]
[1737811928461,0.03,250.42,250.38,82.9]
[1737811928675,0.03,250.42,250.38,94.2545]
[1737811928963,0.03,250.42,250.38,96.2545]
[1737811929745,0.03,250.42,250.38,120.031384]
[1737811930043,0.03,250.42,250.38,100.2484]
[1737811931050,0.03,250.42,250.38,94.2545]
[1737811931450,0.03,250.42,250.38,87.6517]
[1737811932346,20.0,250.41,250.38,1.0]
[1737811932572,8.04955623,250.39,250.38,1.0]
[1737811932858,23.776884,250.38,250.36,1.0]
[1737811933074,7.98655623,250.37,250.36,1.0]
[1737811933227,7.98655623,250.37,250.33,1.0]
[1737811933429,7.98655623,250.35,250.34,1.0]
[1737811933865,7.98655623,250.37,250.34,1.0]
[1737811934160,31.76344023,250.37,250.36,1.0]
[1737811934322,31.76344023,250.37,250.32,1.0]
[1737811934629,23.776884,250.36,250.35,1.0]
[1737811935149,7.98655623,250.37,250.35,1.0]
[1737811935452,23.776884,250.36,250.35,1.0]